[Event "Titled Tuesday Blitz April 4 Early 2023"]
[White "Jain Kashish Manoj"]
[Black "Albornoz Cabrera, Carlos Daniel"]
[WhiteFideId "35081098"]
[BlackFideId "3518736"]
[WhiteElo "2191"]
[BlackElo "2516"]
[Result "1/2-1/2"]
[Round "04"]
[TimeControl "180+2"]
[Date "2023.04.04"]
[WhiteClock "0:00:08"]
[BlackClock "0:01:19"]

1. Nf3 {[%clk 0:03:00]}  Nf6 {[%clk 0:02:59]} 2. e3 {[%clk 0:02:58]}  g6 {[%clk 0:02:59]} 3. b3 {[%clk 0:02:52]}  d5 {[%clk 0:03:00]} 4. Bb2 {[%clk 0:02:53]}  Bg7 {[%clk 0:03:00]} 5. c4 {[%clk 0:02:53]}  dxc4 {[%clk 0:02:57]} 6. Bxc4 {[%clk 0:02:46]}  O-O {[%clk 0:02:57]} 7. O-O {[%clk 0:02:46]}  a6 {[%clk 0:02:55]} 8. Be2 {[%clk 0:02:24]}  c5 {[%clk 0:02:49]} 9. d4 {[%clk 0:02:18]}  Ne4 {[%clk 0:02:47]} 10. Nbd2 {[%clk 0:02:12]}  Bf5 {[%clk 0:02:47]} 11. Nxe4 {[%clk 0:02:06]}  Bxe4 {[%clk 0:02:47]} 12. Rc1 {[%clk 0:02:06]}  Nd7 {[%clk 0:02:44]} 13. Qd2 {[%clk 0:01:47]}  Rc8 {[%clk 0:02:41]} 14. Ng5 {[%clk 0:01:26]}  Nf6 {[%clk 0:02:39]} 15. Nxe4 {[%clk 0:01:18]}  Nxe4 {[%clk 0:02:40]} 16. Qc2 {[%clk 0:01:19]}  cxd4 {[%clk 0:01:47]} 17. Qxe4 {[%clk 0:00:55]}  d3 {[%clk 0:01:47]} 18. Bxd3 {[%clk 0:00:29]}  Bxb2 {[%clk 0:01:45]} 19. Rxc8 {[%clk 0:00:25]}  Qxc8 {[%clk 0:01:46]} 20. Qxe7 {[%clk 0:00:25]}  b5 {[%clk 0:01:45]} 21. h4 {[%clk 0:00:17]}  Rd8 {[%clk 0:01:44]} 22. Bb1 {[%clk 0:00:16]}  Qd7 {[%clk 0:01:38]} 23. Qxd7 {[%clk 0:00:12]}  Rxd7 {[%clk 0:01:39]} 24. g3 {[%clk 0:00:05]}  Rd2 {[%clk 0:01:39]} 25. Kg2 {[%clk 0:00:05]}  b4 {[%clk 0:01:39]} 26. Kf3 {[%clk 0:00:05]}  h5 {[%clk 0:01:36]} 27. Rg1 {[%clk 0:00:03]}  f5 {[%clk 0:01:34]} 28. e4 {[%clk 0:00:02]}  Bd4 {[%clk 0:01:33]} 29. Rf1 {[%clk 0:00:02]}  fxe4+ {[%clk 0:01:31]} 30. Bxe4 {[%clk 0:00:03]}  Kg7 {[%clk 0:01:31]} 31. Bb1 {[%clk 0:00:02]}  a5 {[%clk 0:01:31]} 32. Kg2 {[%clk 0:00:02]}  Bb6 {[%clk 0:01:30]} 33. Kf3 {[%clk 0:00:02]}  Kf6 {[%clk 0:01:30]} 34. Kg2 {[%clk 0:00:03]}  g5 {[%clk 0:01:26]} 35. hxg5+ {[%clk 0:00:03]}  Kxg5 {[%clk 0:01:26]} 36. Kf3 {[%clk 0:00:04]}  Bd4 {[%clk 0:01:27]} 37. Kg2 {[%clk 0:00:04]}  Rb2 {[%clk 0:01:27]} 38. Kf3 {[%clk 0:00:04]}  Bxf2 {[%clk 0:01:27]} 39. Rxf2 {[%clk 0:00:04]}  Rxb1 {[%clk 0:01:28]} 40. Rc2 {[%clk 0:00:05]}  Rf1+ {[%clk 0:01:26]} 41. Kg2 {[%clk 0:00:06]}  Rf5 {[%clk 0:01:26]} 42. Kh3 {[%clk 0:00:06]}  Rd5 {[%clk 0:01:26]} 43. Kg2 {[%clk 0:00:07]}  Kf5 {[%clk 0:01:26]} 44. Kf3 {[%clk 0:00:07]}  Rd3+ {[%clk 0:01:26]} 45. Kf2 {[%clk 0:00:07]}  Rd5 {[%clk 0:01:22]} 46. Kf3 {[%clk 0:00:07]}  Ke5 {[%clk 0:01:22]} 47. Ke3 {[%clk 0:00:07]}  Kf5 {[%clk 0:01:19]} 48. Kf3 {[%clk 0:00:08]} 1/2-1/2


[Site "https://www.chess.com"]

[Event "Titled Tuesday Blitz April 4 Early 2023"]
[White "Flores, Diego"]
[Black "Fiorito, Joaquin"]
[WhiteFideId "108049"]
[BlackFideId "180173"]
[WhiteElo "2613"]
[BlackElo "2157"]
[Result "1-0"]
[Round "04"]
[TimeControl "180+2"]
[Date "2023.04.04"]
[WhiteClock "0:02:12"]
[BlackClock "0:00:12"]

1. d4 {[%clk 0:03:00]}  Nf6 {[%clk 0:02:59]} 2. c4 {[%clk 0:03:01]}  e6 {[%clk 0:03:00]} 3. Nc3 {[%clk 0:03:01]}  Bb4 {[%clk 0:03:00]} 4. e3 {[%clk 0:03:01]}  O-O {[%clk 0:03:00]} 5. a3 {[%clk 0:03:02]}  Bxc3+ {[%clk 0:02:56]} 6. bxc3 {[%clk 0:03:03]}  d5 {[%clk 0:02:56]} 7. cxd5 {[%clk 0:03:03]}  exd5 {[%clk 0:02:56]} 8. Bd3 {[%clk 0:03:03]}  c5 {[%clk 0:02:54]} 9. Ne2 {[%clk 0:03:03]}  b6 {[%clk 0:02:51]} 10. O-O {[%clk 0:03:03]}  Re8 {[%clk 0:02:46]} 11. f3 {[%clk 0:03:03]}  Ba6 {[%clk 0:02:47]} 12. Ng3 {[%clk 0:03:03]}  Bxd3 {[%clk 0:02:42]} 13. Qxd3 {[%clk 0:03:04]}  Nc6 {[%clk 0:02:41]} 14. Bb2 {[%clk 0:03:04]}  h5 {[%clk 0:02:42]} 15. e4 {[%clk 0:03:02]}  h4 {[%clk 0:01:32]} 16. Nf5 {[%clk 0:03:01]}  h3 {[%clk 0:01:17]} 17. e5 {[%clk 0:02:49]}  Nh5 {[%clk 0:01:15]} 18. g3 {[%clk 0:02:32]}  cxd4 {[%clk 0:00:35]} 19. cxd4 {[%clk 0:02:30]}  Na5 {[%clk 0:00:32]} 20. Bc1 {[%clk 0:02:28]}  Nc4 {[%clk 0:00:30]} 21. g4 {[%clk 0:02:28]}  g6 {[%clk 0:00:15]} 22. Nh6+ {[%clk 0:02:27]}  Kg7 {[%clk 0:00:14]} 23. gxh5 {[%clk 0:02:27]}  Qh4 {[%clk 0:00:12]} 24. Ng4 {[%clk 0:02:12]} 1-0


[Site "https://www.chess.com"]

[Event "Titled Tuesday Blitz April 4 Early 2023"]
[White "Iliaguev, Nisim"]
[Black "Pham, Le Thao Nguyen"]
[WhiteFideId "2817276"]
[BlackFideId "12401226"]
[WhiteElo "2241"]
[BlackElo "2286"]
[Result "1-0"]
[Round "04"]
[TimeControl "180+2"]
[Date "2023.04.04"]
[WhiteClock "0:01:40"]
[BlackClock "0:00:03"]

1. d4 {[%clk 0:02:55]}  d5 {[%clk 0:02:58]} 2. c4 {[%clk 0:02:55]}  c6 {[%clk 0:02:58]} 3. cxd5 {[%clk 0:02:55]}  cxd5 {[%clk 0:02:59]} 4. Nf3 {[%clk 0:02:56]}  Nf6 {[%clk 0:02:59]} 5. g3 {[%clk 0:02:57]}  Nc6 {[%clk 0:02:59]} 6. Bg2 {[%clk 0:02:57]}  Bf5 {[%clk 0:02:54]} 7. O-O {[%clk 0:02:58]}  e6 {[%clk 0:02:54]} 8. Nc3 {[%clk 0:02:58]}  Be7 {[%clk 0:02:52]} 9. Nh4 {[%clk 0:02:59]}  Bg4 {[%clk 0:02:50]} 10. h3 {[%clk 0:02:59]}  Bh5 {[%clk 0:02:45]} 11. g4 {[%clk 0:02:59]}  Nd7 {[%clk 0:02:33]} 12. gxh5 {[%clk 0:02:55]}  Bxh4 {[%clk 0:02:31]} 13. e4 {[%clk 0:02:56]}  dxe4 {[%clk 0:02:21]} 14. Nxe4 {[%clk 0:02:57]}  O-O {[%clk 0:02:11]} 15. h6 {[%clk 0:02:49]}  g6 {[%clk 0:02:06]} 16. Be3 {[%clk 0:02:49]}  Be7 {[%clk 0:01:36]} 17. Rc1 {[%clk 0:02:43]}  Rc8 {[%clk 0:01:34]} 18. Qe2 {[%clk 0:02:40]}  Qa5 {[%clk 0:01:30]} 19. a3 {[%clk 0:02:37]}  Rfd8 {[%clk 0:01:05]} 20. Rfd1 {[%clk 0:02:36]}  Qf5 {[%clk 0:00:34]} 21. d5 {[%clk 0:02:29]}  exd5 {[%clk 0:00:32]} 22. Ng3 {[%clk 0:02:29]}  Qf6 {[%clk 0:00:29]} 23. Bxd5 {[%clk 0:02:27]}  Nde5 {[%clk 0:00:22]} 24. Kg2 {[%clk 0:02:12]}  Bf8 {[%clk 0:00:19]} 25. b4 {[%clk 0:02:10]}  a6 {[%clk 0:00:15]} 26. Ne4 {[%clk 0:02:04]}  Qf5 {[%clk 0:00:13]} 27. Bg5 {[%clk 0:02:02]}  Rd6 {[%clk 0:00:08]} 28. h4 {[%clk 0:01:56]}  Rcd8 {[%clk 0:00:05]} 29. Nxd6 {[%clk 0:01:55]}  Rxd6 {[%clk 0:00:06]} 30. Be4 {[%clk 0:01:54]}  Qe6 {[%clk 0:00:05]} 31. Rxd6 {[%clk 0:01:53]}  Bxd6 {[%clk 0:00:06]} 32. Bxc6 {[%clk 0:01:51]}  bxc6 {[%clk 0:00:07]} 33. Rd1 {[%clk 0:01:45]}  f6 {[%clk 0:00:06]} 34. Bf4 {[%clk 0:01:44]}  Be7 {[%clk 0:00:06]} 35. Bxe5 {[%clk 0:01:44]}  fxe5 {[%clk 0:00:07]} 36. Qe4 {[%clk 0:01:42]}  Kf7 {[%clk 0:00:04]} 37. Rd3 {[%clk 0:01:42]}  Bf6 {[%clk 0:00:02]} 38. Rc3 {[%clk 0:01:41]}  Qf5 {[%clk 0:00:02]} 39. Qxf5 {[%clk 0:01:40]}  gxf5 {[%clk 0:00:03]} 40. Rxc6 {[%clk 0:01:40]} 1-0


[Site "https://www.chess.com"]

[Event "Titled Tuesday Blitz April 4 Early 2023"]
[White "Buksa, Nataliya"]
[Black "Bocharov, Dmitry"]
[WhiteFideId "14123622"]
[BlackFideId "4138716"]
[WhiteElo "2316"]
[BlackElo "2469"]
[Result "1/2-1/2"]
[Round "04"]
[TimeControl "180+2"]
[Date "2023.04.04"]
[WhiteClock "0:00:07"]
[BlackClock "0:00:09"]

1. d4 {[%clk 0:03:00]}  d5 {[%clk 0:02:08]} 2. Nc3 {[%clk 0:03:00]}  Nf6 {[%clk 0:02:07]} 3. Bf4 {[%clk 0:03:00]}  a6 {[%clk 0:02:06]} 4. e3 {[%clk 0:03:01]}  b5 {[%clk 0:02:04]} 5. Nf3 {[%clk 0:03:00]}  e6 {[%clk 0:02:02]} 6. Bd3 {[%clk 0:03:00]}  Bb7 {[%clk 0:02:02]} 7. a4 {[%clk 0:03:00]}  b4 {[%clk 0:02:01]} 8. Nb1 {[%clk 0:03:01]}  c5 {[%clk 0:02:00]} 9. dxc5 {[%clk 0:03:01]}  Nbd7 {[%clk 0:01:58]} 10. c6 {[%clk 0:02:49]}  Bxc6 {[%clk 0:01:56]} 11. Nbd2 {[%clk 0:02:50]}  Be7 {[%clk 0:01:54]} 12. O-O {[%clk 0:02:49]}  O-O {[%clk 0:01:53]} 13. Qe2 {[%clk 0:02:41]}  a5 {[%clk 0:01:50]} 14. Rfd1 {[%clk 0:02:32]}  Qb6 {[%clk 0:01:49]} 15. e4 {[%clk 0:02:27]}  dxe4 {[%clk 0:01:25]} 16. Nxe4 {[%clk 0:02:20]}  Nxe4 {[%clk 0:01:21]} 17. Bxe4 {[%clk 0:02:20]}  Bxe4 {[%clk 0:01:19]} 18. Rxd7 {[%clk 0:02:17]}  Bxf3 {[%clk 0:01:11]} 19. Qxf3 {[%clk 0:02:16]}  Bf6 {[%clk 0:01:11]} 20. Rad1 {[%clk 0:01:19]}  Rac8 {[%clk 0:00:52]} 21. h4 {[%clk 0:00:54]}  Qc6 {[%clk 0:00:46]} 22. Qxc6 {[%clk 0:00:28]}  Rxc6 {[%clk 0:00:45]} 23. Bc7 {[%clk 0:00:26]}  Rxc2 {[%clk 0:00:40]} 24. b3 {[%clk 0:00:26]}  Rb2 {[%clk 0:00:35]} 25. Bxa5 {[%clk 0:00:26]}  Rxb3 {[%clk 0:00:34]} 26. Rb7 {[%clk 0:00:26]}  Bc3 {[%clk 0:00:33]} 27. Rd3 {[%clk 0:00:21]}  h5 {[%clk 0:00:23]} 28. g3 {[%clk 0:00:21]}  Ra8 {[%clk 0:00:20]} 29. Bb6 {[%clk 0:00:17]}  Rb1+ {[%clk 0:00:19]} 30. Kg2 {[%clk 0:00:17]}  Bf6 {[%clk 0:00:20]} 31. a5 {[%clk 0:00:16]}  b3 {[%clk 0:00:20]} 32. Bc7 {[%clk 0:00:13]}  b2 {[%clk 0:00:19]} 33. Rdb3 {[%clk 0:00:13]}  Rc1 {[%clk 0:00:18]} 34. Bf4 {[%clk 0:00:07]}  Rxa5 {[%clk 0:00:16]} 35. Rb8+ {[%clk 0:00:06]}  Kh7 {[%clk 0:00:16]} 36. Rxb2 {[%clk 0:00:06]}  Bxb2 {[%clk 0:00:14]} 37. Rxb2 {[%clk 0:00:07]}  Rd1 {[%clk 0:00:13]} 38. Be3 {[%clk 0:00:07]}  Rf5 {[%clk 0:00:13]} 39. Rb7 {[%clk 0:00:06]}  Kg6 {[%clk 0:00:11]} 40. Rb2 {[%clk 0:00:06]}  Rdd5 {[%clk 0:00:06]} 41. Rb3 {[%clk 0:00:06]}  f6 {[%clk 0:00:07]} 42. Rb7 {[%clk 0:00:05]}  Rb5 {[%clk 0:00:06]} 43. Rc7 {[%clk 0:00:05]}  Rfe5 {[%clk 0:00:07]} 44. Bd4 {[%clk 0:00:03]}  Red5 {[%clk 0:00:07]} 45. Be3 {[%clk 0:00:03]}  e5 {[%clk 0:00:08]} 46. Kf3 {[%clk 0:00:03]}  Rb4 {[%clk 0:00:08]} 47. Rc6 {[%clk 0:00:03]}  Rd3 {[%clk 0:00:08]} 48. Ke2 {[%clk 0:00:03]}  Kf5 {[%clk 0:00:09]} 49. Kf3 {[%clk 0:00:03]}  g6 {[%clk 0:00:09]} 50. Kg2 {[%clk 0:00:03]}  Rdb3 {[%clk 0:00:09]} 51. Kf3 {[%clk 0:00:03]}  Rd4 {[%clk 0:00:08]} 52. Ra6 {[%clk 0:00:03]}  Rdd3 {[%clk 0:00:08]} 53. Ke2 {[%clk 0:00:03]}  Rdc3 {[%clk 0:00:08]} 54. Kf3 {[%clk 0:00:03]}  e4+ {[%clk 0:00:08]} 55. Ke2 {[%clk 0:00:03]}  Rc2+ {[%clk 0:00:08]} 56. Kf1 {[%clk 0:00:03]}  g5 {[%clk 0:00:08]} 57. Ra5+ {[%clk 0:00:03]}  Kg4 {[%clk 0:00:06]} 58. hxg5 {[%clk 0:00:03]}  f5 {[%clk 0:00:04]} 59. g6 {[%clk 0:00:01]}  Rc6 {[%clk 0:00:04]} 60. g7 {[%clk 0:00:01]}  Rg6 {[%clk 0:00:04]} 61. Ra7 {[%clk 0:00:02]}  Rb8 {[%clk 0:00:03]} 62. Kg2 {[%clk 0:00:02]}  Rg8 {[%clk 0:00:03]} 63. Bd4 {[%clk 0:00:03]}  h4 {[%clk 0:00:03]} 64. gxh4 {[%clk 0:00:02]}  Kxh4+ {[%clk 0:00:03]} 65. Kf1 {[%clk 0:00:03]}  Kg4 {[%clk 0:00:03]} 66. Ke2 {[%clk 0:00:03]}  f4 {[%clk 0:00:03]} 67. Re7 {[%clk 0:00:03]}  Kf5 {[%clk 0:00:04]} 68. Re5+ {[%clk 0:00:03]}  Kg4 {[%clk 0:00:04]} 69. Rxe4 {[%clk 0:00:04]}  R6xg7 {[%clk 0:00:04]} 70. Bxg7 {[%clk 0:00:04]}  Rxg7 {[%clk 0:00:05]} 71. Re6 {[%clk 0:00:04]}  Kf5 {[%clk 0:00:05]} 72. Re8 {[%clk 0:00:04]}  Ra7 {[%clk 0:00:06]} 73. Rf8+ {[%clk 0:00:04]}  Ke4 {[%clk 0:00:06]} 74. Re8+ {[%clk 0:00:05]}  Kf5 {[%clk 0:00:07]} 75. Rf8+ {[%clk 0:00:05]}  Ke4 {[%clk 0:00:08]} 76. f3+ {[%clk 0:00:06]}  Ke5 {[%clk 0:00:07]} 77. Re8+ {[%clk 0:00:06]}  Kf5 {[%clk 0:00:08]} 78. Rf8+ {[%clk 0:00:07]}  Ke5 {[%clk 0:00:08]} 79. Re8+ {[%clk 0:00:07]}  Kf5 {[%clk 0:00:09]} 80. Rf8+ {[%clk 0:00:07]}  Ke5 {[%clk 0:00:09]} 1/2-1/2


[Site "https://www.chess.com"]

[Event "Titled Tuesday Blitz April 4 Early 2023"]
[White "TimGrutter03"]
[Black "Csonka, Balazs"]
[BlackFideId "742910"]
[WhiteElo "2546"]
[BlackElo "2404"]
[Result "0-1"]
[Round "04"]
[TimeControl "180+2"]
[Date "2023.04.04"]
[WhiteClock "0:00:04"]
[BlackClock "0:00:09"]

1. e4 {[%clk 0:02:53]}  e6 {[%clk 0:02:58]} 2. d4 {[%clk 0:02:53]}  d5 {[%clk 0:02:58]} 3. Nc3 {[%clk 0:02:54]}  Nf6 {[%clk 0:02:57]} 4. Bg5 {[%clk 0:02:50]}  Bb4 {[%clk 0:02:42]} 5. Ne2 {[%clk 0:02:48]}  dxe4 {[%clk 0:02:18]} 6. a3 {[%clk 0:02:47]}  Be7 {[%clk 0:02:19]} 7. Bxf6 {[%clk 0:02:46]}  gxf6 {[%clk 0:02:19]} 8. Nxe4 {[%clk 0:02:46]}  b6 {[%clk 0:02:10]} 9. Qd2 {[%clk 0:02:31]}  Bb7 {[%clk 0:02:08]} 10. N4c3 {[%clk 0:02:31]}  Nc6 {[%clk 0:01:39]} 11. O-O-O {[%clk 0:02:29]}  Qd7 {[%clk 0:01:39]} 12. g3 {[%clk 0:02:11]}  Na5 {[%clk 0:01:21]} 13. Rg1 {[%clk 0:01:44]}  O-O-O {[%clk 0:01:18]} 14. Qd3 {[%clk 0:01:29]}  f5 {[%clk 0:01:09]} 15. Bg2 {[%clk 0:01:22]}  Bxg2 {[%clk 0:01:00]} 16. Rxg2 {[%clk 0:01:22]}  Bf6 {[%clk 0:00:53]} 17. Qf3 {[%clk 0:01:06]}  Kb8 {[%clk 0:00:42]} 18. d5 {[%clk 0:01:02]}  Qe7 {[%clk 0:00:29]} 19. Rgg1 {[%clk 0:00:36]}  Nc4 {[%clk 0:00:28]} 20. Kb1 {[%clk 0:00:26]}  Qc5 {[%clk 0:00:26]} 21. dxe6 {[%clk 0:00:20]}  fxe6 {[%clk 0:00:25]} 22. Ka2 {[%clk 0:00:14]}  a6 {[%clk 0:00:20]} 23. Rxd8+ {[%clk 0:00:14]}  Rxd8 {[%clk 0:00:19]} 24. Rd1 {[%clk 0:00:14]}  Rxd1 {[%clk 0:00:17]} 25. Nxd1 {[%clk 0:00:15]}  Nxb2 {[%clk 0:00:14]} 26. Nxb2 {[%clk 0:00:13]}  Qxc2 {[%clk 0:00:14]} 27. Qb3 {[%clk 0:00:02]}  Qxe2 {[%clk 0:00:12]} 28. a4 {[%clk 0:00:03]}  Kb7 {[%clk 0:00:09]} 29. a5 {[%clk 0:00:03]}  Qxb2+ {[%clk 0:00:08]} 30. Qxb2 {[%clk 0:00:03]}  Bxb2 {[%clk 0:00:09]} 31. Kxb2 {[%clk 0:00:04]}  b5 {[%clk 0:00:09]} 0-1


[Site "https://www.chess.com"]

[Event "Titled Tuesday Blitz April 4 Early 2023"]
[White "Krysa, Leandro"]
[Black "Omelja, Artem"]
[WhiteFideId "116807"]
[BlackFideId "14119846"]
[WhiteElo "2489"]
[BlackElo "2404"]
[Result "0-1"]
[Round "04"]
[TimeControl "180+2"]
[Date "2023.04.04"]
[WhiteClock "0:00:03"]
[BlackClock "0:00:15"]

1. e4 {[%clk 0:03:00]}  c5 {[%clk 0:02:46]} 2. Nf3 {[%clk 0:03:00]}  Nc6 {[%clk 0:02:46]} 3. d4 {[%clk 0:03:00]}  cxd4 {[%clk 0:02:47]} 4. Nxd4 {[%clk 0:03:01]}  Nf6 {[%clk 0:02:48]} 5. Nc3 {[%clk 0:03:01]}  e5 {[%clk 0:02:48]} 6. Ndb5 {[%clk 0:03:01]}  d6 {[%clk 0:02:48]} 7. Nd5 {[%clk 0:03:01]}  Nxd5 {[%clk 0:02:47]} 8. exd5 {[%clk 0:03:02]}  Nb8 {[%clk 0:02:47]} 9. g4 {[%clk 0:02:59]}  Be7 {[%clk 0:02:44]} 10. Be3 {[%clk 0:02:55]}  a6 {[%clk 0:02:44]} 11. Nc3 {[%clk 0:02:54]}  O-O {[%clk 0:02:43]} 12. h4 {[%clk 0:02:50]}  Nd7 {[%clk 0:02:41]} 13. Qd2 {[%clk 0:02:40]}  b5 {[%clk 0:02:35]} 14. g5 {[%clk 0:02:34]}  Bb7 {[%clk 0:02:34]} 15. a3 {[%clk 0:02:24]}  Rc8 {[%clk 0:02:33]} 16. Bh3 {[%clk 0:02:19]}  Rc4 {[%clk 0:02:28]} 17. Bf5 {[%clk 0:02:09]}  Nb6 {[%clk 0:01:56]} 18. Be4 {[%clk 0:02:00]}  Rxe4 {[%clk 0:01:35]} 19. Nxe4 {[%clk 0:01:56]}  Nxd5 {[%clk 0:01:36]} 20. O-O-O {[%clk 0:01:47]}  Qc7 {[%clk 0:01:32]} 21. Rh3 {[%clk 0:01:25]}  Rc8 {[%clk 0:01:27]} 22. Kb1 {[%clk 0:01:24]}  b4 {[%clk 0:01:11]} 23. a4 {[%clk 0:00:59]}  Qa5 {[%clk 0:00:57]} 24. b3 {[%clk 0:00:41]}  Nc3+ {[%clk 0:00:55]} 25. Nxc3 {[%clk 0:00:41]}  bxc3 {[%clk 0:00:56]} 26. Qc1 {[%clk 0:00:37]}  Qb4 {[%clk 0:00:42]} 27. g6 {[%clk 0:00:27]}  hxg6 {[%clk 0:00:34]} 28. h5 {[%clk 0:00:27]}  Be4 {[%clk 0:00:33]} 29. Ka2 {[%clk 0:00:23]}  d5 {[%clk 0:00:25]} 30. hxg6 {[%clk 0:00:21]}  fxg6 {[%clk 0:00:17]} 31. f3 {[%clk 0:00:11]}  Bf5 {[%clk 0:00:16]} 32. Rh2 {[%clk 0:00:09]}  d4 {[%clk 0:00:17]} 33. Bf2 {[%clk 0:00:04]}  Be6 {[%clk 0:00:17]} 34. Kb1 {[%clk 0:00:03]}  Rb8 {[%clk 0:00:16]} 35. Rdh1 {[%clk 0:00:02]}  Kf7 {[%clk 0:00:15]} 36. Rh8 {[%clk 0:00:01]}  Rxh8 {[%clk 0:00:13]} 37. Rxh8 {[%clk 0:00:02]}  Bxb3 {[%clk 0:00:14]} 38. cxb3 {[%clk 0:00:02]}  Qxb3+ {[%clk 0:00:14]} 39. Ka1 {[%clk 0:00:03]}  Ba3 {[%clk 0:00:15]} 0-1


[Site "https://www.chess.com"]

[Event "Titled Tuesday Blitz April 4 Early 2023"]
[White "Sharapov, Evgeny"]
[Black "Prohaszka, Peter"]
[WhiteFideId "14103133"]
[BlackFideId "726265"]
[WhiteElo "2367"]
[BlackElo "2626"]
[Result "1-0"]
[Round "04"]
[TimeControl "180+2"]
[Date "2023.04.04"]
[WhiteClock "0:00:25"]
[BlackClock "0:00:12"]

1. e4 {[%clk 0:02:58]}  c6 {[%clk 0:02:53]} 2. d4 {[%clk 0:02:58]}  d5 {[%clk 0:02:53]} 3. e5 {[%clk 0:02:58]}  Bf5 {[%clk 0:02:53]} 4. Be3 {[%clk 0:02:58]}  e6 {[%clk 0:02:48]} 5. c4 {[%clk 0:02:58]}  dxc4 {[%clk 0:02:28]} 6. Bxc4 {[%clk 0:02:56]}  Bxb1 {[%clk 0:02:14]} 7. Qxb1 {[%clk 0:02:55]}  Bb4+ {[%clk 0:02:10]} 8. Ke2 {[%clk 0:02:55]}  Ne7 {[%clk 0:02:07]} 9. Nf3 {[%clk 0:02:55]}  Nf5 {[%clk 0:02:06]} 10. Bd3 {[%clk 0:02:50]}  Nxe3 {[%clk 0:02:03]} 11. fxe3 {[%clk 0:02:50]}  h6 {[%clk 0:01:58]} 12. Rf1 {[%clk 0:02:48]}  Nd7 {[%clk 0:01:58]} 13. Kf2 {[%clk 0:02:47]}  c5 {[%clk 0:01:48]} 14. a3 {[%clk 0:02:45]}  Ba5 {[%clk 0:01:48]} 15. b4 {[%clk 0:02:44]}  cxb4 {[%clk 0:01:41]} 16. axb4 {[%clk 0:02:44]}  Bc7 {[%clk 0:01:35]} 17. Kg1 {[%clk 0:02:40]}  O-O {[%clk 0:01:35]} 18. Qb3 {[%clk 0:02:37]}  Nb6 {[%clk 0:01:32]} 19. Bc2 {[%clk 0:02:37]}  Nd5 {[%clk 0:01:20]} 20. e4 {[%clk 0:02:29]}  Nf4 {[%clk 0:01:17]} 21. Qe3 {[%clk 0:02:25]}  Ng6 {[%clk 0:01:12]} 22. Kh1 {[%clk 0:02:24]}  Qe7 {[%clk 0:01:11]} 23. b5 {[%clk 0:02:15]}  Bb6 {[%clk 0:01:10]} 24. Rfd1 {[%clk 0:02:12]}  Rfd8 {[%clk 0:01:08]} 25. Qb3 {[%clk 0:02:03]}  Rd7 {[%clk 0:00:56]} 26. d5 {[%clk 0:01:47]}  Rad8 {[%clk 0:00:29]} 27. d6 {[%clk 0:01:43]}  Qf8 {[%clk 0:00:29]} 28. Bd3 {[%clk 0:01:35]}  Kh8 {[%clk 0:00:24]} 29. g3 {[%clk 0:01:32]}  Re8 {[%clk 0:00:21]} 30. Bc4 {[%clk 0:01:30]}  Rdd8 {[%clk 0:00:12]} 31. h4 {[%clk 0:01:30]}  f6 {[%clk 0:00:12]} 32. d7 {[%clk 0:01:18]}  Re7 {[%clk 0:00:12]} 33. h5 {[%clk 0:01:18]}  Nxe5 {[%clk 0:00:12]} 34. Nxe5 {[%clk 0:01:18]}  fxe5 {[%clk 0:00:13]} 35. Bxe6 {[%clk 0:01:07]}  Qf6 {[%clk 0:00:09]} 36. Bf5 {[%clk 0:01:03]}  Qg5 {[%clk 0:00:08]} 37. Qf3 {[%clk 0:01:00]}  Rf7 {[%clk 0:00:05]} 38. Qg4 {[%clk 0:00:51]}  Qf6 {[%clk 0:00:05]} 39. Rac1 {[%clk 0:00:50]}  Bd4 {[%clk 0:00:04]} 40. Rc8 {[%clk 0:00:48]}  Rff8 {[%clk 0:00:04]} 41. Rdc1 {[%clk 0:00:44]}  Bb6 {[%clk 0:00:03]} 42. Rxd8 {[%clk 0:00:43]}  Bxd8 {[%clk 0:00:04]} 43. Rc8 {[%clk 0:00:42]}  a5 {[%clk 0:00:03]} 44. bxa6 {[%clk 0:00:41]}  bxa6 {[%clk 0:00:04]} 45. Qg6 {[%clk 0:00:27]}  Qxg6 {[%clk 0:00:04]} 46. hxg6 {[%clk 0:00:27]}  a5 {[%clk 0:00:05]} 47. Ra8 {[%clk 0:00:27]}  Rg8 {[%clk 0:00:02]} 48. Be6 {[%clk 0:00:26]}  Rf8 {[%clk 0:00:02]} 49. Bf7 {[%clk 0:00:26]}  a4 {[%clk 0:00:03]} 50. Rxa4 {[%clk 0:00:22]}  Be7 {[%clk 0:00:03]} 51. Be8 {[%clk 0:00:19]}  Bd8 {[%clk 0:00:02]} 52. Ra8 {[%clk 0:00:18]}  Bb6 {[%clk 0:00:02]} 53. d8=Q {[%clk 0:00:18]}  Bxd8 {[%clk 0:00:03]} 54. Rxd8 {[%clk 0:00:18]}  h5 {[%clk 0:00:03]} 55. Rc8 {[%clk 0:00:18]}  h4 {[%clk 0:00:03]} 56. gxh4 {[%clk 0:00:18]}  Rg8 {[%clk 0:00:03]} 57. Bd7 {[%clk 0:00:18]}  Rxc8 {[%clk 0:00:02]} 58. Bxc8 {[%clk 0:00:18]}  Kg8 {[%clk 0:00:03]} 59. Kg2 {[%clk 0:00:18]}  Kf8 {[%clk 0:00:04]} 60. Kg3 {[%clk 0:00:19]}  Ke7 {[%clk 0:00:04]} 61. Kg4 {[%clk 0:00:19]}  Kf6 {[%clk 0:00:05]} 62. h5 {[%clk 0:00:20]}  Ke7 {[%clk 0:00:06]} 63. Kg5 {[%clk 0:00:20]}  Kd6 {[%clk 0:00:06]} 64. h6 {[%clk 0:00:21]}  gxh6+ {[%clk 0:00:06]} 65. Kxh6 {[%clk 0:00:21]}  Kc5 {[%clk 0:00:07]} 66. Kg5 {[%clk 0:00:22]}  Kd4 {[%clk 0:00:08]} 67. Kf5 {[%clk 0:00:22]}  Ke3 {[%clk 0:00:09]} 68. g7 {[%clk 0:00:23]}  Kf3 {[%clk 0:00:09]} 69. g8=Q {[%clk 0:00:23]}  Ke3 {[%clk 0:00:09]} 70. Kxe5 {[%clk 0:00:23]}  Kf3 {[%clk 0:00:10]} 71. Qg4+ {[%clk 0:00:24]}  Ke3 {[%clk 0:00:10]} 72. Qg3+ {[%clk 0:00:24]}  Ke2 {[%clk 0:00:11]} 73. Kd4 {[%clk 0:00:24]}  Kd2 {[%clk 0:00:11]} 74. Qf2+ {[%clk 0:00:24]}  Kc1 {[%clk 0:00:11]} 75. Kc3 {[%clk 0:00:24]}  Kd1 {[%clk 0:00:12]} 76. Qf1# {[%clk 0:00:25]} 1-0


[Site "https://www.chess.com"]